bitfinex-derivatives/quotes_SOLF0:USTF0_20250419
["timestamp","ask_amount","ask_price","bid_price","bid_amount"]
[1745045519921,6.5119,138.22,138.19,50.44]
[1745045523525,6.5123,138.21,138.19,50.44]
[1745045524719,6.5128,138.2,138.19,50.44]
[1745045529332,6.5125,138.21,138.19,50.44]
[1745045529531,363.0,138.24,138.19,50.44]
[1745045529731,5.41966798,138.23,138.19,50.44]
[1745045530033,9.98851929,138.22,138.19,50.44]
[1745045530232,4.56885131,138.22,138.19,50.44]
[1745045530532,6.5127,138.21,138.19,50.44]
[1745045530742,363.0,138.24,138.19,50.44]
[1745045530930,6.5127,138.21,138.19,50.44]
[1745045531834,6.5128,138.2,138.19,50.44]
[1745045538333,6.5132,138.19,138.18,0.04932592]
[1745045538538,16.5202586,138.19,138.18,0.04932592]
[1745045539236,16.52358547,138.19,138.18,0.04932592]
[1745045539437,16.5235854,138.19,138.18,0.04932592]
[1745045540431,16.5235854,138.19,138.18,2.592e-05]
[1745045540738,16.4770555,138.19,138.18,2.592e-05]
[1745045544841,16.47063031,138.19,138.18,2.592e-05]
[1745045548646,16.46297962,138.19,138.18,2.592e-05]
[1745045550944,6.5175,138.1,138.09,25.44]
[1745045552448,6.518,138.09,138.08,0.05211762]
[1745045552740,6.518,138.09,138.08,25.44]
[1745045553445,6.518,138.09,138.07,4.00658833]
[1745045553642,6.518,138.09,138.08,25.44]
[1745045554043,6.518,138.09,138.07,4.00658833]
[1745045554244,6.518,138.09,138.08,25.44]
[1745045554545,6.518,138.09,138.07,4.00658833]
[1745045554747,6.518,138.09,138.08,25.44]
[1745045554947,6.518,138.09,138.07,4.00658833]
[1745045555245,6.518,138.09,138.08,25.44]
[1745045556042,6.518,138.09,138.07,4.00658833]
[1745045556345,6.518,138.09,138.08,25.44]
[1745045556548,6.518,138.09,138.07,4.00658833]
[1745045556747,6.518,138.09,138.08,25.44]
[1745045556948,6.5184,138.08,138.07,4.00658833]
[1745045557149,0.05426773,138.1,138.07,29.44658833]
[1745045558251,6.5181,138.09,138.07,4.00658833]
[1745045558749,6.5181,138.09,138.08,25.44]
[1745045559452,6.57176773,138.1,138.08,25.44]
[1745045562356,6.518,138.09,138.08,25.44]
[1745045570060,6.518,138.09,138.07,4.00658833]
[1745045570359,6.518,138.09,138.08,25.44]
[1745045570562,6.518,138.09,138.07,4.00658833]
[1745045570759,6.518,138.09,138.08,25.44]
[1745045581776,6.57186773,138.1,138.08,25.44]
[1745045582076,363.0,138.14,138.08,25.44]
[1745045582274,5.37354295,138.13,138.08,25.44]
[1745045582473,5.37354295,138.12,138.08,25.44]
[1745045582770,6.5164,138.13,138.08,25.44]
[1745045582977,363.0,138.14,138.08,25.44]
[1745045583280,363.0,138.14,138.09,1.3296483]
[1745045583673,369.5161,138.14,138.09,1.3296483]
[1745045583974,363.0,138.14,138.1,0.05436445]
[1745045584178,6.5163,138.13,138.11,25.44]
[1745045585683,6.5165,138.12,138.11,25.44]
[1745045588078,6.5163,138.13,138.11,25.44]
[1745045588881,369.5158,138.14,138.11,25.44]
[1745045589174,369.5158,138.14,138.12,5.7295]
[1745045590081,6.5161,138.13,138.12,5.7295]
[1745045591086,369.5158,138.14,138.12,5.7295]
[1745045591279,363.0,138.14,138.12,5.7295]
[1745045593284,369.5157,138.14,138.12,5.7295]
[1745045595093,6.5161,138.13,138.12,5.7295]
[1745045596486,369.5158,138.14,138.12,5.7295]
[1745045597690,6.5161,138.13,138.12,5.7295]
[1745045599782,6.5161,138.13,138.12,3.774]
[1745045600281,6.5165,138.12,138.11,25.44]
[1745045605594,6.5162,138.13,138.11,25.44]
[1745045605888,363.0,138.14,138.11,25.44]
[1745045606487,6.5161,138.13,138.11,25.44]
[1745045606690,363.0,138.14,138.11,25.44]
[1745045607392,6.5161,138.13,138.11,25.44]
[1745045614502,363.0,138.14,138.11,25.44]
[1745045614803,153.03883404,138.2,138.12,1.32947526]
[1745045615100,9.96573806,138.19,138.13,1.32928032]
[1745045615301,5.38738481,138.18,138.15,0.04744336]
[1745045615500,4.57835325,138.18,138.15,2.02284336]
[1745045616002,153.03883404,138.2,138.15,2.02284336]
[1745045616196,5.37669583,138.19,138.15,2.02284336]
[1745045616400,153.03883404,138.2,138.15,2.02284336]
[1745045616699,6.5147,138.16,138.15,2.02284336]
[1745045628110,6.5147,138.16,138.15,0.04744336]
[1745045628313,16.48210431,138.16,138.15,0.04744336]
[1745045629917,16.48210431,138.16,138.15,25.46744336]
[1745045630113,16.48210431,138.16,138.15,0.04744336]
[1745045630311,16.48210431,138.16,138.15,25.46744336]
[1745045631321,16.48210431,138.16,138.15,0.04744336]
[1745045631522,16.48210431,138.16,138.15,25.46744336]
[1745045631718,16.48210431,138.16,138.15,0.04744336]
[1745045631920,16.48210431,138.16,138.15,25.46744336]
[1745045632318,16.49086936,138.16,138.15,25.46744336]
[1745045636019,16.48624298,138.16,138.15,25.46744336]
[1745045637723,16.48555371,138.16,138.15,25.46744336]
[1745045641927,11.09383147,138.16,138.15,25.46744336]
[1745045642226,6.5147,138.16,138.15,25.46744336]
[1745045642627,6.5138,138.18,138.15,25.46744336]
[1745045642827,5.39113357,138.17,138.15,25.46744336]
[1745045643027,6.5138,138.18,138.15,25.46744336]
[1745045643228,9.97264817,138.17,138.15,25.46744336]
[1745045643427,11.09581663,138.17,138.15,25.46744336]
[1745045643629,9.97293261,138.16,138.15,25.46744336]
[1745045644227,4.58151663,138.16,138.15,25.46744336]
[1745045644624,6.5143,138.17,138.15,25.46744336]
[1745045646331,6.5147,138.16,138.15,25.46744336]
[1745045650134,11.90688121,138.16,138.15,25.46744336]
[1745045650334,16.48955801,138.16,138.15,25.46744336]
[1745045651235,16.4900469,138.16,138.15,25.46744336]
[1745045654139,16.49069675,138.16,138.15,25.46744336]
[1745045655538,9.97599675,138.16,138.15,25.46744336]
[1745045655738,9.78830831,138.16,138.15,25.46744336]
[1745045656037,16.30300831,138.16,138.15,25.46744336]
[1745045656436,11.09786569,138.16,138.15,25.46744336]
[1745045660848,16.16910434,138.16,138.15,25.46744336]
[1745045661349,16.16910434,138.16,138.15,5.55244336]
[1745045661549,6.5165,138.12,138.11,1.44812106]
[1745045661748,6.5165,138.12,138.11,26.86812106]
[1745045663346,11.10050679,138.12,138.11,26.86812106]
[1745045663548,6.5165,138.12,138.11,26.86812106]
[1745045664451,11.09858819,138.12,138.11,26.86812106]
[1745045668554,6.5165,138.12,138.11,26.86812106]
[1745045670460,6.5165,138.12,138.11,1.44812106]
[1745045670656,6.5165,138.12,138.11,26.86812106]
[1745045670859,6.5165,138.12,138.11,1.44812106]
[1745045671055,6.5165,138.12,138.11,26.86812106]
[1745045671256,11.09609186,138.12,138.11,26.86812106]
[1745045672958,11.09609186,138.12,138.11,1.44812106]
[1745045673657,16.16212536,138.12,138.11,26.86812106]
[1745045675159,11.09609186,138.12,138.11,26.86812106]
[1745045676561,16.15898783,138.12,138.11,17.00362106]
[1745045676760,16.15898783,138.12,138.11,2.106e-05]
[1745045677063,6.517,138.11,138.1,0.05200006]
[1745045677557,16.15786078,138.11,138.1,0.05200006]
[1745045677862,16.15786078,138.11,138.1,6e-08]
[1745045681561,16.14857394,138.11,138.1,6e-08]
[1745045683465,16.14637668,138.11,138.1,6e-08]
[1745045684161,11.09659186,138.11,138.1,6e-08]
[1745045684562,6.517,138.11,138.1,6e-08]
[1745045685165,11.56490408,138.11,138.1,6e-08]
[1745045686062,16.1269058,138.11,138.1,6e-08]
[1745045692670,16.12224711,138.11,138.1,6e-08]
[1745045692970,11.07963884,138.11,138.1,6e-08]
[1745045693170,16.12230495,138.11,138.1,6e-08]
[1745045694667,16.12341129,138.11,138.1,6e-08]
[1745045695165,11.07963884,138.11,138.1,6e-08]
[1745045695472,16.12427218,138.11,138.1,6e-08]
[1745045698366,16.12539084,138.11,138.1,6e-08]
[1745045699977,16.12617484,138.11,138.1,6e-08]
[1745045700777,11.07963884,138.11,138.1,6e-08]
[1745045701077,16.1272522,138.11,138.1,6e-08]
[1745045705879,16.13554635,138.11,138.1,6e-08]
[1745045706281,26.13554635,138.11,138.1,6e-08]
[1745045706479,16.13554635,138.11,138.1,6e-08]
[1745045709376,16.13460547,138.11,138.1,6e-08]
[1745045709575,16.13460547,138.11,138.03,27.294]
[1745045709777,6.5208,138.03,138.02,569.70760006]
[1745045714988,6.5205,138.04,138.02,569.70760006]
[1745045715188,6.5205,138.04,138.02,573.70650006]
[1745045715389,6.5205,138.04,138.03,1.9061]
[1745045716785,373.0,138.1,138.03,1.9061]
[1745045716978,5.05693841,138.09,138.03,1.9061]
[1745045717177,4.57189939,138.08,138.03,1.9061]
[1745045717382,4.57189939,138.08,138.05,0.04998747]
[1745045717588,6.5188,138.08,138.06,25.44]
[1745045717988,363.0,138.1,138.06,25.44]
[1745045718288,6.5188,138.08,138.06,25.44]
[1745045718788,363.0,138.1,138.06,25.44]
[1745045719087,9.63533434,138.09,138.07,1.8806]
[1745045719287,4.5746903,138.09,138.07,1.8806]
[1745045719488,4.5746903,138.08,138.07,1.8806]
[1745045719683,11.0933903,138.08,138.07,1.8806]
[1745045721189,4.5746903,138.08,138.07,1.8806]
[1745045722691,363.0,138.1,138.07,1.8806]
[1745045723690,369.5176,138.1,138.07,1.8806]
[1745045724193,369.5176,138.1,138.08,3.8777]
[1745045724392,6.5176,138.1,138.09,25.44]
[1745045725487,363.0,138.17,138.09,25.44]
[1745045725692,363.0,138.16,138.09,25.44]
[1745045725990,363.0,138.16,138.11,0.05111614]
[1745045726591,6.5165,138.13,138.12,25.44]
[1745045728690,6.5158,138.14,138.12,25.44]
[1745045729796,6.5152,138.15,138.12,25.44]
[1745045730297,6.5157,138.14,138.12,25.44]
[1745045730798,369.5148,138.16,138.12,25.44]
[1745045731294,369.5148,138.16,138.12,27.4488]
[1745045731898,6.5152,138.15,138.12,27.4488]
[1745045733194,369.5149,138.16,138.12,27.4488]
[1745045733398,363.0,138.16,138.12,27.4488]
[1745045734497,6.5151,138.15,138.12,27.4488]
[1745045735294,6.5157,138.14,138.12,27.4488]
[1745045735799,6.5157,138.14,138.12,27.5042965]
[1745045735999,6.5161,138.13,138.12,27.5042965]
[1745045736498,6.5161,138.13,138.12,27.4488]
[1745045743203,6.5158,138.14,138.12,27.4488]
[1745045743800,6.5158,138.14,138.12,27.50261635]
[1745045746707,6.5161,138.13,138.12,25.49381635]
[1745045768611,6.5161,138.13,138.12,7.53902605]
[1745045768815,6.5175,138.1,138.09,25.42]
[1745045773909,0.05347995,138.11,138.09,25.42]
[1745045777713,0.05347995,138.11,138.09,29.2865]
[1745045780418,6.57057995,138.11,138.09,29.2865]
[1745045786223,0.05347995,138.11,138.09,29.2865]
[1745045787427,6.57047995,138.11,138.09,29.2865]
[1745045798042,0.05347995,138.11,138.09,29.2865]
[1745045799241,6.57047995,138.11,138.09,29.2865]
[1745045799849,0.05347995,138.11,138.09,29.2865]
[1745045806348,6.57047995,138.11,138.09,29.2865]
[1745045807749,6.5175,138.1,138.09,27.2658]
[1745045808051,6.5175,138.1,138.09,25.42]
[1745045809150,11.0285245,138.1,138.09,25.42]
[1745045809843,6.5175,138.1,138.09,25.42]
[1745045821954,0.05347995,138.11,138.09,25.42]
[1745045825256,6.5175,138.1,138.09,25.42]
[1745045825455,0.05347995,138.11,138.09,25.42]
[1745045825857,6.57097995,138.11,138.09,25.42]
[1745045827358,6.5175,138.1,138.09,25.42]
[1745045830369,0.05347995,138.11,138.09,25.42]
[1745045830563,363.0,138.16,138.09,25.42]
[1745045830760,5.07570033,138.15,138.09,25.42]
[1745045831065,9.58656112,138.14,138.1,1.32949652]
[1745045831366,363.0,138.16,138.1,1.32949652]
[1745045831563,5.07526084,138.15,138.1,1.32949652]
[1745045831764,363.0,138.16,138.1,1.32949652]
[1745045831958,5.07525383,138.15,138.12,0.05539539]
[1745045832163,363.0,138.16,138.13,25.4]
[1745045832462,5.07492384,138.15,138.13,25.4]
[1745045832662,363.0,138.16,138.13,25.4]
[1745045832864,9.58490404,138.15,138.13,25.4]
[1745045833062,4.51007848,138.15,138.13,25.4]
[1745045833261,6.5156,138.14,138.13,25.4]
[1745045833465,11.02567848,138.14,138.13,25.4]
[1745045836270,4.51007848,138.14,138.13,25.4]
[1745045837369,11.02567848,138.14,138.13,25.4]
[1745045837669,16.09877555,138.14,138.13,25.4]
[1745045837870,6.5161,138.13,138.12,0.05539539]
[1745045838163,9.58317555,138.13,138.09,25.4]
[1745045838368,5.07309707,138.12,138.09,25.4]
[1745045838670,4.51007848,138.11,138.09,25.4]
[1745045839066,363.0,138.16,138.09,25.4]
[1745045839271,6.5175,138.1,138.09,25.4]
[1745045842571,6.5175,138.1,138.09,26.72969532]
[1745045842767,6.517,138.12,138.09,26.72969532]
[1745045842971,363.0,138.15,138.09,25.4]
[1745045843168,363.0,138.15,138.1,1.32959565]
[1745045843366,4.50806696,138.14,138.1,1.32959565]
[1745045843771,363.0,138.15,138.11,0.05280847]
[1745045843974,363.0,138.15,138.12,25.4]
[1745045844375,5.07226551,138.14,138.12,25.4]
[1745045844573,363.0,138.15,138.12,25.4]
[1745045844871,5.07226543,138.14,138.12,25.4]
[1745045845072,4.50783486,138.14,138.12,25.4]
[1745045845267,6.5161,138.13,138.12,25.4]
[1745045845475,11.02390604,138.13,138.12,25.4]
[1745045846776,6.5158,138.14,138.12,25.4]
[1745045847280,6.5158,138.14,138.12,25.44795889]
[1745045853280,6.5161,138.13,138.12,25.44795889]
[1745045854978,6.5158,138.14,138.12,25.44795889]
[1745045857320,363.0,138.2,138.13,1.32934408]
[1745045857518,5.0692874,138.19,138.13,3.32874408]
[1745045857825,6.5144,138.17,138.13,3.905]
[1745045858027,6.5144,138.17,138.15,0.05358685]
[1745045858222,6.5144,138.17,138.16,25.4]
[1745045859320,10.0,138.24,138.16,25.4]
[1745045859514,5.06497934,138.23,138.16,25.4]
[1745045859711,5.06497934,138.22,138.16,25.4]
[1745045860004,6.5131,138.2,138.18,0.04916135]
[1745045860306,6.5131,138.2,138.19,25.4]
[1745045860907,11.0141958,138.2,138.19,25.4]
[1745045861507,6.5131,138.2,138.19,25.4]
[1745045862415,363.0,138.25,138.19,25.4]
[1745045862612,5.05782185,138.24,138.19,25.4]
[1745045862807,363.0,138.25,138.19,25.4]
[1745045863002,6.5112,138.24,138.19,25.4]
[1745045863199,11.00479083,138.24,138.19,25.4]
[1745045863399,11.00479083,138.24,138.2,1.447178]
[1745045863797,6.5112,138.24,138.2,1.447178]
[1745045864598,6.5112,138.24,138.2,7.279678]
[1745045865905,6.5115,138.23,138.2,7.279678]
[1745045866405,6.5115,138.23,138.2,7.3311336]
[1745045866604,6.5119,138.22,138.2,5.3114336]
[1745045867103,6.5123,138.21,138.2,5.3114336]
[1745045869501,363.0,138.25,138.2,5.3114336]
[1745045869502,6.512,138.22,138.2,5.3114336]
[1745045871207,6.5123,138.21,138.2,5.3114336]
[1745045875207,6.5123,138.21,138.2,6.64006659]
[1745045875412,6.5123,138.21,138.2,2.82726659]
[1745045875612,6.5123,138.21,138.2,1.4986336]
[1745045899529,11.00452444,138.21,138.2,1.4986336]
[1745045901036,6.5123,138.21,138.2,1.4986336]
[1745045902134,11.0085767,138.21,138.2,1.4986336]
[1745045903734,16.07256336,138.21,138.2,1.4986336]
[1745045903931,16.07256336,138.21,138.2,3.36e-05]
[1745045908637,16.07238387,138.21,138.2,3.36e-05]
[1745045917747,16.07523934,138.21,138.2,3.36e-05]
[1745045919547,11.0085767,138.21,138.2,3.36e-05]
[1745045919747,16.07551184,138.21,138.2,3.36e-05]
[1745045921453,16.07654923,138.21,138.2,3.36e-05]
[1745045923347,16.07629604,138.21,138.2,3.36e-05]
[1745045927753,11.0085767,138.21,138.2,3.36e-05]
[1745045928053,16.07574018,138.21,138.2,3.36e-05]
[1745045930655,16.0759244,138.21,138.2,3.36e-05]
[1745045942568,13.0048244,138.21,138.2,3.36e-05]
[1745045943368,13.00916892,138.21,138.2,3.36e-05]
[1745045951374,7.9374767,138.21,138.2,3.36e-05]
[1745045955475,4.4962767,138.21,138.2,3.36e-05]
[1745045956273,11.0085767,138.21,138.2,3.36e-05]
[1745045956478,6.5123,138.21,138.2,3.36e-05]
[1745045975191,16.07585334,138.21,138.2,3.36e-05]
[1745045978297,16.07813271,138.21,138.2,3.36e-05]
[1745045981094,16.07858077,138.21,138.2,3.36e-05]
[1745045989205,11.01282296,138.21,138.2,3.36e-05]
[1745045989410,16.07972269,138.21,138.2,3.36e-05]
[1745045991217,51.43758005,138.21,138.2,3.36e-05]
[1745045996718,26.07758005,138.21,138.2,3.36e-05]
[1745045997013,51.45758005,138.21,138.2,3.36e-05]
[1745045998617,41.45758005,138.21,138.2,3.36e-05]
[1745046003713,16.07758005,138.21,138.2,3.36e-05]
[1745046005730,16.06780569,138.21,138.2,3.36e-05]
[1745046006121,11.01282296,138.21,138.2,3.36e-05]
[1745046006320,16.06812132,138.21,138.2,3.36e-05]
[1745046016819,11.01282296,138.21,138.2,3.36e-05]
[1745046017124,16.07732617,138.21,138.2,3.36e-05]
[1745046017526,16.07826446,138.21,138.2,3.36e-05]
[1745046022828,11.5777415,138.21,138.2,3.36e-05]
[1745046023128,16.0809284,138.21,138.2,3.36e-05]
[1745046023928,16.08259043,138.21,138.2,3.36e-05]
[1745046032632,16.08259043,138.21,138.2,4.0082336]
[1745046034243,11.0154869,138.21,138.2,4.0082336]
[1745046035040,11.0154869,138.21,138.2,6.0218336]
[1745046035939,6.5123,138.21,138.2,6.0218336]
[1745046043247,6.56546215,138.22,138.2,6.0218336]
[1745046043648,0.05346215,138.22,138.2,6.0218336]
[1745046045249,6.5123,138.21,138.2,6.0218336]
[1745046053881,6.5123,138.21,138.2,4.0082336]
[1745046054080,6.5123,138.21,138.2,3.36e-05]
[1745046056366,6.56546215,138.22,138.2,3.36e-05]
[1745046056865,6.56546215,138.22,138.2,1.8811336]
[1745046058960,0.05346215,138.22,138.2,1.8811336]
[1745046059170,0.05346215,138.22,138.2,5.7409336]
[1745046060269,6.56556215,138.22,138.2,5.7409336]
[1745046061369,6.56556215,138.22,138.21,1.328526]
[1745046062168,6.56556215,138.22,138.2,5.7409336]
[1745046063512,6.56556215,138.22,138.21,1.32853368]
[1745046063976,6.56556215,138.22,138.2,5.7409336]
[1745046064967,10.0,138.29,138.2,5.7409336]
[1745046065173,363.0,138.36,138.21,2.77560917]
[1745046065373,368.05809789,138.35,138.22,28.11550448]
[1745046065577,6.5093,138.28,138.23,2.7753998]
[1745046065768,6.5093,138.28,138.24,2.77529513]
[1745046065969,6.5093,138.28,138.25,26.66853588]
[1745046066271,6.5087,138.29,138.25,25.39344938]
[1745046066472,6.5087,138.29,138.25,25.34]
[1745046066772,5.9527,138.34,138.26,0.05189332]
[1745046066973,9.38691451,138.33,138.26,0.05189332]
[1745046067273,4.89758713,138.32,138.26,0.05189332]
[1745046067473,11.05169477,138.31,138.26,0.05189332]
[1745046067676,4.54409477,138.31,138.26,0.05189332]
[1745046068275,0.05476739,138.31,138.26,0.05189332]
[1745046068472,0.05476739,138.31,138.26,1.37997019]
[1745046068670,0.05476739,138.31,138.26,0.05189332]
[1745046068892,0.05476739,138.31,138.26,1.37981239]
[1745046069576,6.56266739,138.31,138.26,1.37981239]
[1745046070277,6.56266739,138.31,138.26,0.05189332]
[1745046070472,6.56266739,138.31,138.26,1.3797865]
[1745046071480,0.05476739,138.31,138.27,1.44644536]
[1745046071686,0.05476739,138.31,138.28,26.66789318]
[1745046071878,0.05476739,138.31,138.29,1.44623617]
[1745046074678,0.05476739,138.31,138.3,1.32765709]
[1745046074976,363.0,138.35,138.3,1.44613159]
[1745046075277,6.5066,138.34,138.31,26.66754232]
[1745046075577,6.5066,138.34,138.31,25.34]
[1745046075977,6.5066,138.34,138.31,25.3864699]
[1745046077079,6.5068,138.33,138.31,25.3864699]
[1745046077478,6.5068,138.33,138.31,25.38847014]
[1745046077875,6.5071,138.32,138.31,25.38847014]
[1745046078177,6.5071,138.32,138.31,25.34]
[1745046078375,0.05152731,138.33,138.31,25.34]
[1745046078675,366.9632,138.41,138.31,26.78602704]
[1745046078882,367.87194385,138.4,138.31,26.83800309]
[1745046079080,363.0,138.4,138.31,26.78602704]
[1745046079379,6.5056,138.36,138.34,0.05456696]
[1745046079580,6.5056,138.36,138.35,25.32]
[1745046080785,10.4513,138.36,138.35,25.32]
[1745046081285,12.3497,138.36,138.35,25.32]
[1745046081790,6.5056,138.36,138.35,25.32]
[1745046083989,10.438,138.36,138.35,25.32]
[1745046088687,6.5057,138.35,138.34,0.05456696]
[1745046088892,6.5057,138.35,138.2,25.32]
[1745046088893,363.0,138.33,138.2,25.32]
[1745046089094,403.18690569,138.32,138.21,1.3282589]
[1745046089294,4.46315129,138.31,138.2,25.32]
[1745046089595,4.46315129,138.31,138.21,1.32841175]
[1745046089893,3.8196,138.3,138.21,1.32841175]
[1745046090095,0.05479717,138.27,138.25,0.04785844]
[1745046090310,6.5099,138.26,138.25,0.04785844]
[1745046095499,6.56439717,138.27,138.25,0.04785844]
[1745046095796,6.56439717,138.27,138.26,25.34]
[1745046099800,6.5099,138.26,138.25,0.04785844]
[1745046106601,6.5099,138.26,138.25,5.844e-05]
[1745046123606,0.05479717,138.27,138.25,5.844e-05]
[1745046123808,5.9286,138.34,138.26,25.64]
[1745046124005,6.5089,138.29,138.26,25.64]
[1745046124907,6.5089,138.29,138.26,25.69464736]
[1745046126217,6.5616703,138.29,138.26,25.69464736]
[1745046130323,6.5091,138.28,138.26,25.69464736]
[1745046132320,6.5614703,138.29,138.26,25.69464736]
[1745046132525,365.0463,138.37,138.27,1.44644536]
[1745046132823,6.5078,138.31,138.27,1.44644536]
[1745046133619,6.5081,138.3,138.28,0.05143099]
[1745046133825,365.0463,138.37,138.29,25.5]
[1745046134024,9.39131411,138.36,138.29,25.5]
[1745046134224,4.89990799,138.35,138.29,25.5]
[1745046134425,4.49140612,138.34,138.29,25.5]
[1745046134625,4.49140612,138.34,138.31,0.04632714]
[1745046134826,6.5067,138.33,138.32,25.5]
[1745046136626,6.5063,138.34,138.32,25.5]
[1745046137922,6.5059,138.35,138.32,25.5]
[1745046138129,363.0,138.37,138.32,25.5]
[1745046138428,4.48441176,138.36,138.32,25.5]
[1745046138624,10.99001176,138.36,138.32,25.5]
[1745046138829,6.5056,138.36,138.32,25.5]
[1745046139831,6.5057,138.35,138.32,25.5]
[1745046141230,6.5064,138.34,138.32,25.5]
[1745046142131,6.55739442,138.34,138.32,25.5]
[1745046142931,6.5067,138.33,138.32,25.5]
[1745046145831,0.05099442,138.34,138.32,25.5]
[1745046163235,0.05099442,138.34,138.33,1.32740459]
[1745046164035,0.05099442,138.34,138.32,25.5]
[1745046164240,0.05099442,138.34,138.32,26.94592249]
[1745046166039,0.05099442,138.34,138.32,599.14592249]
[1745046168142,0.05099442,138.34,138.33,1.32733832]
[1745046169251,6.5039,138.39,138.33,1.32733832]
[1745046169440,6.5039,138.39,138.33,2.77315629]
[1745046169743,6.5039,138.39,138.33,1.44581797]
[1745046170443,6.5039,138.39,138.35,0.0543376]
[1745046170744,6.5039,138.39,138.36,25.38]
[1745046171752,6.5047,138.38,138.36,25.38]
[1745046173043,6.5041,138.39,138.36,25.38]
[1745046173244,4.4807698,138.38,138.36,25.38]
[1745046173636,4.53025646,138.38,138.36,25.38]
[1745046173834,0.04948666,138.38,138.36,25.38]
[1745046174246,6.55408666,138.38,138.36,25.38]
[1745046175146,4.90286506,138.37,138.36,25.38]
[1745046175446,9.3860357,138.37,138.36,25.38]
[1745046175746,15.8908357,138.37,138.36,25.38]
[1745046176646,9.3860357,138.37,138.36,25.38]
[1745046178445,9.38993518,138.37,138.36,25.38]
[1745046182352,9.39243237,138.37,138.36,25.38]
[1745046184653,15.89723237,138.37,138.36,25.38]
[1745046186957,9.39243237,138.37,138.36,25.38]
[1745046187655,9.39373176,138.37,138.36,25.38]
[1745046191257,4.48317064,138.37,138.36,25.38]
[1745046191459,9.39433499,138.37,138.36,25.38]
[1745046195267,9.39491504,138.37,138.36,25.38]
[1745046196761,4.48317064,138.37,138.36,25.38]
[1745046196968,9.39576116,138.37,138.36,25.38]
[1745046199169,9.395683,138.37,138.36,25.38]
[1745046200665,9.39580397,138.37,138.36,25.38]
[1745046202369,9.39655697,138.37,138.36,25.38]
[1745046204162,4.48317064,138.37,138.36,25.38]
[1745046204368,9.39629748,138.37,138.36,25.38]
[1745046207867,9.39572582,138.37,138.36,25.38]
[1745046213373,9.39655353,138.37,138.36,25.38]
[1745046215174,9.39734093,138.37,138.36,25.38]
[1745046217079,9.39799934,138.37,138.36,25.38]
[1745046220781,9.39833659,138.37,138.36,25.38]
[1745046227985,9.39850324,138.37,138.36,25.38]
[1745046228787,15.90330324,138.37,138.36,25.38]
[1745046230585,9.39850324,138.37,138.36,25.38]
[1745046233494,4.48317064,138.37,138.36,25.38]
[1745046233792,9.39761331,138.37,138.36,25.38]
[1745046235394,9.39745955,138.37,138.36,25.38]
[1745046237193,9.39739065,138.37,138.36,25.38]
[1745046239292,9.39739065,138.37,138.35,25.3743376]
[1745046239591,4.91422001,138.36,138.35,25.3743376]
[1745046239794,9.39739065,138.36,138.35,25.3743376]
[1745046246292,9.39839464,138.36,138.35,25.3743376]
[1745046246503,0.04948666,138.38,138.35,25.3743376]
[1745046255902,363.0,138.47,138.35,25.3743376]
[1745046256099,363.0,138.46,138.36,3.30400448]
[1745046256300,363.0,138.46,138.36,7.27270448]
[1745046256501,369.5008,138.46,138.36,7.27270448]
[1745046257004,363.0,138.46,138.37,1.32705392]
[1745046257197,369.5007,138.46,138.4,0.05467535]
[1745046257421,369.5007,138.46,138.41,25.32]
[1745046257602,363.0,138.46,138.41,25.32]
[1745046259107,6.5013,138.45,138.41,25.32]
[1745046262509,6.5016,138.44,138.41,25.32]
[1745046263906,6.5011,138.45,138.41,25.32]
[1745046264810,6.5016,138.44,138.41,25.32]
[1745046265207,363.0,138.46,138.41,25.32]
[1745046265409,369.5007,138.46,138.41,25.32]
[1745046267013,363.0,138.46,138.41,25.32]
[1745046268211,369.5006,138.46,138.41,25.32]
[1745046268510,363.0,138.46,138.41,25.32]
[1745046269814,6.5013,138.45,138.41,25.32]
[1745046271416,363.0,138.46,138.41,25.32]
[1745046273812,1.25708919,138.52,138.41,32.54]
[1745046274020,358.8144,138.56,138.42,3.17489458]
[1745046274217,358.8144,138.56,138.43,1.32649458]